fUSD/lending_fUSD_20240225
["ID","MTS","AMOUNT","RATE_DAILY","PERIOD"]
[315105543,1708825839357,-5078.24079332,0.00025288,5]
[315105544,1708825839367,-166.782684,0.00025295,5]
[315105545,1708825839376,-6332.20179267,0.00025299,5]
[315105546,1708825839456,-1212.35627754,0.00025299,5]
[315105547,1708825839466,-209.45814932,0.00025517,2]
[315105548,1708825839476,-0.76124071,0.00025525,2]
[315105549,1708825839488,-2590.107524,0.00025525,2]
[315105550,1708825839505,-751.825,0.00025525,2]
[315105606,1708825840167,-2038.36667172,0.00025525,2]
[315105609,1708825840177,-461.63332828,0.00025599,2]
[315105621,1708825840283,-369.5358568,0.00025599,2]
[315105713,1708825841124,-155.95671492,0.00025599,2]
[315105715,1708825841134,-155.25501413,0.00025631,2]
[315105717,1708825841146,-62.24081916,0.00025631,2]
[315105719,1708825841156,-2043.4341809,0.00025631,2]
[315105866,1708825842631,-427.06366047,0.00025631,2]
[315105867,1708825842646,-176.17629979,0.00025638,2]
[315105868,1708825842655,-1936.33479017,0.00025642,2]
[315105869,1708825842667,-4350.37595863,0.00025642,2]
[315105870,1708825842806,-3642.23527685,0.00025642,2]
[315105931,1708825845839,-632.64,0.00024914,2]
[315105932,1708825845849,-155.90165703,0.00025597,2]
[315105933,1708825845859,-4800.77158297,0.00025642,2]
[315105934,1708825845899,-672.44009638,0.00025642,2]
[315105935,1708825845914,-10637.38562537,0.00025642,2]
[315105936,1708825845926,-619.76020313,0.00025642,2]
[315105937,1708825845951,-28895.6964665,0.00025642,2]
[315105938,1708825845967,-11763.83452309,0.00025645,2]
[315105939,1708825845978,-14004.06237691,0.00025645,2]
[315105940,1708825845988,-500.0,0.00025683,2]
[315105941,1708825845996,-1683.3585,0.00025684,2]
[315105942,1708825846007,-1000.0,0.00025684,2]
[315105943,1708825846016,-288.15589073,0.00025695,2]
[315105944,1708825846025,-500.0,0.00025695,2]
[315105945,1708825846034,-281.67726532,0.00025695,2]
[315105946,1708825846043,-68911.15305471,0.00025696,4]
[315105949,1708825847761,10000.0,0.00032,60]
[315105950,1708825996728,10000.0,0.00023,2]
[315105953,1708826064938,151.0,0.00030618,120]
[315105956,1708826287288,151.0,0.00030728,120]
[315105957,1708826320722,156.73763018,0.00031,60]
[315105958,1708826379380,1000.0,0.00027,14]
[315105959,1708826414181,1000.0,0.00025,7]
[315105961,1708826433888,305.91,0.00022703,2]
[315105969,1708826593234,204.738813,0.00022521,2]
[315105970,1708826595622,800.0,0.0002252,2]
[315105971,1708826596020,800.0,0.00022521,2]
[315105972,1708826596520,800.0,0.00022521,2]
[315105975,1708826602046,2000.0,0.00032,60]
[315105976,1708826604704,202.252884,0.00022521,2]
[315105977,1708826607974,200.0,0.00022521,2]
[315105979,1708826618517,500.0,0.00022521,2]
[315105980,1708826622276,200.0,0.00022521,2]
[315105982,1708826651273,300.0,0.00032,60]
[315105983,1708826654928,3016.73,0.00023,2]
[315105998,1708826837315,151.0,0.00030831,120]
[315106000,1708826919931,290.61,0.00022292,2]
[315106011,1708827031864,-155.0,0.00023098,2]
[315106012,1708827031874,-2293.38168762,0.00023099,2]
[315106013,1708827031885,-518.63122438,0.00023099,2]
[315106014,1708827031920,-1360.9645792,0.00023099,2]
[315106015,1708827031930,-10000.0,0.000231,2]
[315106016,1708827031940,-209.0,0.00023642,2]
[315106017,1708827031949,-10000.0,0.00024,2]
[315106018,1708827031958,-506.12,0.00024286,2]
[315106019,1708827031968,-557.4,0.00024392,2]
[315106020,1708827031977,-3410.64,0.00024455,2]
[315106021,1708827031986,-523.58,0.00024499,2]
[315106022,1708827031995,-161.33,0.00024501,2]
[315106023,1708827032005,-493.88,0.00024543,2]
[315106024,1708827032014,-290.61,0.00024556,2]
[315106025,1708827032023,-183.64,0.0002457,2]
[315106026,1708827032034,-250.0,0.00024658,2]
[315106027,1708827032044,-490.73,0.00024705,2]
[315106028,1708827032053,-184.34,0.00024733,2]
[315106029,1708827032062,-173.22,0.00024756,2]
[315106030,1708827032072,-436.86,0.00024909,2]
[315106031,1708827032081,-393.04,0.00024909,2]
[315106032,1708827032091,-10000.0,0.00025,2]
[315106033,1708827032100,-1250.0,0.00025,3]
[315106034,1708827032109,-1169.51847719,0.00025207,2]
[315106035,1708827032118,-1039.97887345,0.00025277,5]
[315106036,1708827032128,-1039.97887345,0.00025285,5]
[315106037,1708827032137,-1039.97887345,0.0002529,5]
[315106038,1708827032146,-1039.97887345,0.00025292,5]
[315106039,1708827032155,-153.47,0.00025443,2]
[315106040,1708827032165,-424.37,0.00025443,2]
[315106041,1708827032174,-202.33177312,0.00025487,2]
[315106042,1708827032183,-268.49636829,0.00025489,2]
[315106043,1708827032194,-311.80331404,0.0002549,2]
[315106044,1708827032203,-209.8289,0.00025497,2]
[315106045,1708827032212,-3964.91109437,0.000255,2]
[315106046,1708827032224,-2274.21890563,0.000255,2]
[315106047,1708827032234,-151.022508,0.00025541,3]
[315106048,1708827032242,-157.022508,0.00025541,3]
[315106049,1708827032252,-157.022508,0.00025541,3]
[315106050,1708827032261,-157.022508,0.00025541,3]
[315106051,1708827032270,-27303.29590157,0.00025542,2]
[315106052,1708827032310,-528.30798343,0.00025542,2]
[315106053,1708827032325,-550.3716276,0.00025542,2]
[315106054,1708827032340,-911.68,0.00025542,2]
[315106055,1708827032376,-4199.89718794,0.00025542,2]
[315106056,1708827032388,-29301.09782491,0.00025542,2]
[315106057,1708827032401,-734.66922033,0.00025542,2]
[315106058,1708827032436,-36470.68025422,0.00025542,2]
[315106059,1708827032448,-173.22,0.00025581,2]
[315106060,1708827032459,-931.1058659,0.00025587,2]
[315106061,1708827032471,-272266.26085269,0.00025587,2]
[315106063,1708827037859,-190.4313,0.00023642,2]
[315106064,1708827037869,-808.47739292,0.00025587,2]
[315106065,1708827037882,-15161.2313221,0.00025587,2]
[315106066,1708827037918,-3356.783765,0.00025587,2]
[315106307,1708827040438,-5152.8,0.00025587,2]
[315106309,1708827040451,-135055.02255484,0.00025587,2]
[315106327,1708827040602,-1129.89026151,0.00025587,2]
[315106329,1708827040615,-51737.1616522,0.00025587,2]
[315106336,1708827040664,-2417.4110548,0.00025587,2]
[315106338,1708827040677,-1751.50950448,0.00025587,2]
[315106341,1708827040691,-1779.18544613,0.00025587,2]
[315106343,1708827040704,-6213.21653112,0.00025587,2]
[315106417,1708827041378,-452.63,0.00025587,2]
[315106477,1708827041922,-1504.6372376,0.00025587,2]
[315106577,1708827042871,-1025.59171108,0.00025587,2]
[315106584,1708827042928,-761.52025127,0.00025587,2]
[315106665,1708827043795,-10537.04482255,0.00025587,2]
[315106667,1708827043807,-2661.86289347,0.00025587,2]
[315106756,1708827045839,-155.0,0.00025586,2]
[315106759,1708827045849,-2844.99983619,0.00025587,2]
[315106770,1708827045898,-158.15,0.00024764,2]
[315106773,1708827045908,-51560.85000005,0.00025587,2]
[315106788,1708827046012,-1417.5451377,0.00025587,2]
[315106800,1708827046124,-349.74553949,0.00025587,2]
[315106837,1708827046464,-365092.25040821,0.00025587,2]
[315106895,1708827124357,208.0,0.00022642,2]
[315106896,1708827141447,12424.31054427,0.00023,2]
[315106897,1708827152082,2000.0,0.00027,14]
[315106898,1708827171732,150.0,0.000247,10]
[315106899,1708827193195,200.0,0.00022816,2]
[315106900,1708827196545,800.0,0.00022816,2]
[315106901,1708827206293,229.653573,0.00022816,2]
[315106902,1708827209267,200.0,0.00022816,2]
[315106903,1708827224025,500.0,0.00022816,2]
[315106904,1708827229246,200.0,0.00022816,2]
[315106905,1708827374215,151.0,0.00031451,120]
[315106906,1708827379678,311.54,0.00022543,2]
[315107059,1708827637177,151.0,0.00031406,120]
[315107060,1708827795584,800.0,0.00022363,2]
[315107061,1708827807614,200.0,0.00022363,2]
[315107062,1708827810490,227.34531811,0.000247,10]
[315107063,1708827819296,500.0,0.00022363,2]
[315107064,1708827830372,-404.9,0.00024042,2]
[315107065,1708827830393,-482.36316452,0.00024066,2]
[315107066,1708827830413,-155.0,0.00024067,2]
[315107067,1708827830433,-155.0,0.00024068,2]
[315107068,1708827830455,-2000.0,0.00024073,2]
[315107069,1708827830476,-386.22,0.0002409,2]
[315107070,1708827830496,-679.87,0.00024103,2]
[315107071,1708827830517,-180.97,0.00024119,2]
[315107072,1708827830537,-158.01,0.00024217,2]
[315107073,1708827830561,-180.97,0.00024246,2]
[315107074,1708827830582,-180.97,0.00024373,2]
[315107075,1708827830604,-250.0,0.00024393,2]
[315107076,1708827830625,-182.43,0.00024461,2]
[315107077,1708827830649,-180.97,0.000245,2]
[315107078,1708827830802,-154.10433286,0.00024525,2]
[315107079,1708827830832,-1742.7,0.00024525,2]
[315107080,1708827830854,-595.1,0.00024534,2]
[315107081,1708827830876,-215.81,0.00024562,2]
[315107082,1708827830898,-154.10433277,0.00024606,2]
[315107083,1708827830918,-1205.92,0.00024617,2]
[315107084,1708827830942,-180.97,0.00024627,2]
[315107085,1708827830963,-158.01,0.00024638,2]
[315107086,1708827830983,-250.0,0.00024658,2]
[315107087,1708827831004,-250.0,0.00024658,2]
[315107088,1708827831025,-154.10433277,0.00024688,2]
[315107089,1708827831046,-180.97,0.00024754,2]
[315107090,1708827831067,-154.10433277,0.00024769,2]
[315107091,1708827831088,-311.54,0.00024807,2]
[315107092,1708827831108,-504.0,0.00024823,2]
[315107093,1708827831129,-154.10433277,0.0002485,2]
[315107094,1708827831151,-180.97,0.0002488,2]
[315107095,1708827831172,-154.10433277,0.00024931,2]
[315107096,1708827831194,-457.16,0.00024932,2]
[315107097,1708827831215,-1300.62089208,0.00025,2]
[315107098,1708827831237,-180.97,0.00025007,2]
[315107099,1708827831259,-154.10433277,0.00025013,2]
[315107100,1708827831281,-158.01,0.00025058,2]
[315107101,1708827831304,-154.10433277,0.00025094,2]
[315107102,1708827831327,-180.97,0.00025134,2]
[315107103,1708827831349,-154.10433277,0.00025175,2]
[315107104,1708827831371,-158.15,0.00025176,2]
[315107105,1708827831393,-154.10433277,0.00025256,2]
[315107106,1708827831415,-180.97,0.00025261,2]
[315107107,1708827831438,-659.91135796,0.00025276,5]
[315107108,1708827831462,-659.91135796,0.00025287,5]
[315107109,1708827831484,-659.91135796,0.0002529,5]
[315107110,1708827831505,-659.91135796,0.0002529,5]
[315107111,1708827831527,-150.0,0.00025331,2]
[315107112,1708827831548,-150.0,0.00025331,2]
[315107113,1708827831571,-150.0,0.00025331,2]
[315107114,1708827831594,-150.0,0.00025331,2]
[315107115,1708827831615,-150.0,0.00025331,2]
[315107116,1708827831637,-150.0,0.00025331,2]
[315107117,1708827831657,-150.0,0.00025331,2]
[315107118,1708827831678,-150.0,0.00025331,2]
[315107119,1708827831700,-150.0,0.00025331,2]
[315107120,1708827831722,-150.0,0.00025331,2]
[315107121,1708827831743,-150.0,0.00025331,2]
[315107122,1708827831764,-150.0,0.00025331,2]
[315107123,1708827831785,-150.0,0.00025331,2]
[315107124,1708827831805,-150.0,0.00025331,2]
[315107125,1708827831825,-150.0,0.00025331,2]
[315107126,1708827831845,-150.0,0.00025331,2]
[315107127,1708827831865,-150.0,0.00025331,2]
[315107128,1708827831886,-150.0,0.00025331,2]
[315107129,1708827831905,-150.0,0.00025331,2]
[315107130,1708827831924,-150.0,0.00025331,2]
[315107131,1708827831949,-150.0,0.00025331,2]
[315107132,1708827831968,-150.0,0.00025331,2]
[315107133,1708827831987,-150.0,0.00025331,2]
[315107134,1708827832007,-150.0,0.00025331,2]
[315107135,1708827832026,-150.0,0.00025331,2]
[315107136,1708827832046,-150.0,0.00025331,2]
[315107137,1708827832070,-150.0,0.00025331,2]
[315107138,1708827832090,-150.0,0.00025331,2]
[315107139,1708827832111,-150.0,0.00025331,2]
[315107140,1708827832131,-150.0,0.00025331,2]
[315107141,1708827832150,-150.0,0.00025331,2]
[315107142,1708827832172,-150.0,0.00025331,2]
[315107143,1708827832194,-150.0,0.00025331,2]
[315107144,1708827832214,-150.0,0.00025331,2]
[315107145,1708827832236,-154.10433277,0.00025338,2]
[315107146,1708827832258,-180.97,0.00025388,2]
[315107147,1708827832278,-413.13,0.00025407,2]
[315107148,1708827832299,-153.67,0.00025407,2]
[315107149,1708827832320,-154.10433277,0.00025419,2]
[315107150,1708827832341,-158.01,0.00025479,2]
[315107151,1708827832361,-318.97332557,0.00025482,2]
[315107152,1708827832380,-163.64241482,0.00025485,2]
[315107153,1708827832401,-5959.28955378,0.00025489,2]
[315107154,1708827832421,-154.10433277,0.000255,2]
[315107155,1708827832441,-1811.95012338,0.00025508,2]
[315107156,1708827832461,-791.98739221,0.00025508,2]
[315107157,1708827832481,-180.97,0.00025515,2]
[315107158,1708827832503,-151.022511,0.00025578,3]
[315107159,1708827832525,-151.022511,0.00025578,3]
[315107160,1708827832546,-151.022511,0.00025578,3]
[315107161,1708827832573,-151.022511,0.00025578,3]
[315107162,1708827832596,-151.022511,0.00025578,3]
[315107163,1708827832617,-151.022511,0.00025578,3]
[315107164,1708827832638,-151.022511,0.00025578,3]
[315107165,1708827832660,-151.022511,0.00025578,3]
[315107166,1708827832681,-151.022511,0.00025578,3]
[315107167,1708827832703,-151.022511,0.00025578,3]
[315107168,1708827832725,-151.022511,0.00025578,3]
[315107169,1708827832746,-151.022511,0.00025578,3]
[315107170,1708827832766,-151.022511,0.00025578,3]
[315107171,1708827832787,-151.022511,0.00025578,3]
[315107172,1708827832808,-151.022511,0.00025578,3]
[315107173,1708827832829,-151.022511,0.00025578,3]
[315107174,1708827832851,-151.022511,0.00025578,3]
[315107175,1708827832874,-151.022511,0.00025578,3]
[315107176,1708827832896,-151.022511,0.00025578,3]
[315107177,1708827832917,-151.022511,0.00025578,3]
[315107178,1708827832938,-151.022511,0.00025578,3]
[315107179,1708827832959,-172006.4186447,0.00025581,2]
[315107180,1708827864944,280.38,0.00022728,2]
[315107182,1708827982144,-155.0,0.00024624,2]
[315107183,1708827982171,-155.0,0.00024625,2]
[315107184,1708827982192,-250.0,0.00024626,2]
[315107185,1708827982214,-4172.9774912,0.00024641,2]
[315107186,1708827982236,-950.97,0.00024642,2]
[315107187,1708827982258,-128.0525088,0.00024992,2]
[315107188,1708828017725,151.0,0.00031713,120]
[315107215,1708828233799,-155.0,0.00024543,2]
[315107216,1708828233811,-4172.9774912,0.00024543,2]
[315107217,1708828233823,-2000.0,0.00024544,2]
[315107218,1708828233835,-500.0,0.00024584,2]
[315107219,1708828233846,-615.57,0.00024604,2]
[315107220,1708828233857,-155.0,0.00024631,2]
[315107221,1708828233867,-154.02,0.00024632,2]
[315107222,1708828233877,-250.0,0.00024658,2]
[315107223,1708828233888,-254.15218268,0.000247,2]
[315107224,1708828233898,-150.94,0.00024932,2]
[315107225,1708828233908,-152.3274912,0.00024992,2]
[315107226,1708828233918,-150.0,0.00024999,2]
[315107227,1708828233928,-300.0,0.00024999,2]
[315107228,1708828233938,-852.25826839,0.00025,2]
[315107229,1708828233948,-852.25826839,0.00025,2]
[315107230,1708828233958,-852.25826839,0.00025,2]
[315107231,1708828233968,-852.25826839,0.00025,2]
[315107232,1708828233978,-852.25826839,0.00025,2]
[315107233,1708828233988,-154.02,0.00025124,2]
[315107234,1708828233999,-389.34770123,0.00025286,5]
[315107235,1708828234009,-389.34770123,0.0002529,5]
[315107236,1708828234022,-389.34770123,0.00025291,5]
[315107237,1708828234032,-389.34770123,0.00025299,5]
[315107238,1708828234043,-150.0,0.00025331,2]
[315107257,1708828234053,-150.0,0.00025331,2]
[315107258,1708828234524,-150.0,0.00025331,2]
[315107259,1708828234546,-150.0,0.00025331,2]
[315107260,1708828234567,-150.0,0.00025331,2]
[315107261,1708828234576,-150.0,0.00025331,2]
[315107262,1708828234585,-150.0,0.00025331,2]
[315107263,1708828234595,-150.0,0.00025331,2]
[315107264,1708828234604,-150.0,0.00025331,2]
[315107265,1708828234613,-150.0,0.00025331,2]
[315107266,1708828234622,-150.0,0.00025331,2]
[315107267,1708828234631,-150.0,0.00025331,2]
[315107268,1708828234640,-150.0,0.00025331,2]
[315107269,1708828234650,-150.0,0.00025331,2]
[315107270,1708828234660,-150.0,0.00025331,2]
[315107271,1708828234670,-150.0,0.00025331,2]
[315107272,1708828234679,-150.0,0.00025331,2]
[315107273,1708828234687,-499.99,0.00025331,2]
[315107274,1708828234697,-150.0,0.00025331,2]
[315107275,1708828234706,-150.0,0.00025331,2]
[315107276,1708828234715,-150.0,0.00025331,2]
[315107277,1708828234724,-150.0,0.00025331,2]
[315107278,1708828234734,-150.0,0.00025331,2]
[315107279,1708828234744,-150.0,0.00025331,2]
[315107280,1708828234754,-150.0,0.00025331,2]
[315107281,1708828234763,-150.0,0.00025331,2]
[315107282,1708828234772,-150.0,0.00025331,2]
[315107283,1708828234781,-222.8608,0.00025331,2]
[315107284,1708828234791,-503.4837,0.00025481,2]
[315107285,1708828234799,-25746.3922,0.00025481,2]
[315107286,1708828234809,-1285.73638951,0.00025482,2]
[315107287,1708828234817,-157.98498631,0.00025485,2]
[315107288,1708828234826,-168.41569811,0.00025485,2]
[315107289,1708828234835,-157.98498631,0.00025487,2]
[315107290,1708828234844,-196.72,0.00025575,3]
[315107291,1708828234853,-590.16,0.00025575,3]
[315107292,1708828234862,-197.022511,0.00025578,3]
[315107293,1708828234871,-202.022511,0.00025578,3]
[315107294,1708828234881,-151.022511,0.00025578,3]
[315107295,1708828234890,-151.022511,0.00025578,3]
[315107296,1708828234899,-151.022511,0.00025578,3]
[315107297,1708828234909,-151.022511,0.00025578,3]
[315107298,1708828234918,-151.022511,0.00025578,3]
[315107299,1708828234927,-151.022511,0.00025578,3]
[315107300,1708828234936,-151.022511,0.00025578,3]
[315107301,1708828234945,-151.022511,0.00025578,3]
[315107302,1708828234954,-151.022511,0.00025578,3]
[315107303,1708828234963,-151.022511,0.00025578,3]
[315107304,1708828234972,-151.022511,0.00025578,3]
[315107305,1708828234981,-151.022511,0.00025578,3]
[315107306,1708828234990,-151.022511,0.00025578,3]
[315107307,1708828235000,-151.022511,0.00025578,3]
[315107308,1708828235010,-151.022511,0.00025578,3]
[315107309,1708828235020,-151.022511,0.00025578,3]
[315107310,1708828235029,-151.022511,0.00025578,3]
[315107311,1708828235038,-151.022511,0.00025578,3]
[315107312,1708828235048,-151.022511,0.00025578,3]
[315107313,1708828235057,-151.022511,0.00025578,3]
[315107314,1708828235067,-151.022511,0.00025578,3]
[315107315,1708828235076,-1919.53755085,0.00025579,2]
[315107316,1708828235086,-200.35254546,0.00025579,2]
[315107317,1708828235095,-1000.0,0.0002558,2]
[315107318,1708828235105,-905.94996503,0.0002558,2]
[315107319,1708828235114,-213.23217863,0.0002558,2]
[315107320,1708828235123,-4840.6634472,0.00025584,4]
[315107321,1708828235474,-387.98420604,0.00025584,4]
[315107322,1708828235486,-7474.92666498,0.00025584,4]
[315107323,1708828235505,-400.0,0.00025584,4]
[315107324,1708828235516,-12412.50202106,0.00025584,4]
[315107325,1708828235675,-7471.93719586,0.00025584,4]
[315107326,1708828235687,-483.77695341,0.00025584,4]
[315107330,1708828237926,-901.21593766,0.00025584,4]
[315107332,1708828237937,-297.60793773,0.00025584,4]
[315107334,1708828237949,-545.03939917,0.00025584,4]
[315107337,1708828237989,-51964.40657478,0.00025584,4]
[315107339,1708828238000,-287.70908348,0.00025584,4]
[315107340,1708828238013,-1634.9606888,0.00025584,4]
[315107342,1708828238231,-3678.24169276,0.00025584,4]
[315107343,1708828238278,-276.08104344,0.00025584,4]
[315107344,1708828238293,-12611.7763925,0.00025584,4]
[315107582,1708828240585,-153767.51275822,0.00025584,4]
[315107590,1708828240645,-362.96611841,0.00025584,4]
[315107592,1708828240657,-583.84300099,0.00025584,4]
[315107594,1708828240671,-1227.74622662,0.00025584,4]
[315107661,1708828241389,-18853.86175102,0.00025584,4]
[315107664,1708828241406,-59388.13420658,0.00025584,4]
[315107666,1708828241417,-10338.93051399,0.00025584,4]
[315107668,1708828241428,-29256.89136724,0.00025584,4]
[315107689,1708828241615,-5138.3,0.00025584,4]
[315107692,1708828241626,-520.01,0.00025584,4]
[315107900,1708828243630,-11601.20491482,0.00025583,2]
[315107902,1708828243642,-4860.69809969,0.00025583,2]
[315108215,1708828246839,-146393.19296112,0.00025583,2]
[315108234,1708828247001,-424050.45940205,0.00025583,2]
[315108251,1708828407760,151.0,0.00031795,120]
[315108252,1708828439022,396.72,0.0002243,2]
[315108253,1708828667332,-502.98175206,0.00027397,10]
[315108254,1708828667370,-561.07,0.00027397,10]
[315108255,1708828667393,-979.51,0.00027397,10]
[315108256,1708828667473,-816.0,0.00028,10]
[315108257,1708828668653,816.25,0.00027397,10]
[315108258,1708828679069,680.21,0.00027397,10]
[315108259,1708828689600,566.84,0.00027397,10]
[315108260,1708828703148,472.37,0.00027397,10]
[315108261,1708828717822,393.64,0.00027397,10]
[315108262,1708828728425,328.04,0.00027397,10]
[315108263,1708828739217,273.36,0.00027397,10]
[315108264,1708828749782,227.8,0.00027397,10]
[315108265,1708828763026,189.84,0.00027397,10]
[315108266,1708828954934,376.88,0.00021959,2]
[315108267,1708828982131,1039.0,0.00027,14]
[315108273,1708829285956,5897.0,0.0002,2]
[315108280,1708829408949,156209.44982732,0.0002,2]
[315108281,1708829417937,358.03,0.00021628,2]
[315108282,1708829422964,1444.74,0.00027,14]
[315108283,1708829424856,156209.44982732,0.0002,2]
[315108288,1708829432164,-155.0,0.00023662,2]
[315108290,1708829432173,-171.3538337,0.00023663,2]
[315108291,1708829432182,-329.25329036,0.00023763,2]
[315108292,1708829432223,-1209.89380055,0.00023763,2]
[315108293,1708829432286,-2633.83040029,0.00023763,2]
[315108294,1708829432295,-676.08,0.00023764,2]
[315108295,1708829432304,-179.15,0.00023823,2]
[315108296,1708829432313,-794.24,0.00023854,2]
[315108297,1708829432323,-300.0,0.0002386,2]
[315108298,1708829432332,-10744.85,0.00023861,2]
[315108299,1708829432341,-250.0,0.00023864,2]
[315108300,1708829432350,-676.32,0.00023883,2]
[315108301,1708829432359,-358.03,0.00023892,2]
[315108302,1708829432369,-323.92,0.00023908,2]
[315108303,1708829432378,-2000.0,0.00023908,2]
[315108304,1708829432387,-171.35383366,0.00023956,2]
[315108305,1708829432396,-160.1,0.00024009,2]
[315108306,1708829432405,-160.1,0.00024113,2]
[315108307,1708829432414,-160.1,0.00024217,2]
[315108308,1708829432423,-23458.0,0.0002423,2]
[315108309,1708829432432,-171.35383366,0.00024249,2]
[315108310,1708829432441,-174.17,0.00024251,2]
[315108311,1708829432451,-160.1,0.00024321,2]
[315108312,1708829432460,-1527.22623599,0.00024374,2]
[315108313,1708829432469,-2209.67,0.00024384,2]
[315108314,1708829432478,-170.81,0.00024417,2]
[315108315,1708829432488,-160.1,0.00024426,2]
[315108316,1708829432497,-160.1,0.0002453,2]
[315108317,1708829432506,-171.35383366,0.00024543,2]
[315108318,1708829432516,-177.83,0.00024584,2]
[315108319,1708829432525,-160.1,0.00024634,2]
[315108320,1708829432534,-250.0,0.00024658,2]
[315108321,1708829432544,-250.0,0.00024658,2]
[315108322,1708829432553,-164.95,0.00024685,2]
[315108323,1708829432567,-160.1,0.00024738,2]
[315108324,1708829432576,-171.35383366,0.00024836,2]
[315108325,1708829432586,-160.1,0.00024843,2]
[315108327,1708829432595,-275.77,0.00024932,2]
[315108329,1708829432605,-150.94,0.00024932,2]
[315108330,1708829432615,-160.1,0.00024947,2]
[315108331,1708829432624,-29999.99,0.0002498,2]
[315108333,1708829432634,-1250.0,0.00025,3]
[315108335,1708829432644,-4999.99999901,0.00025,2]
[315108336,1708829432653,-852.25826839,0.00025028,2]
[315108337,1708829432663,-190.6964,0.00025029,2]
[315108338,1708829432673,-109509.4829,0.00025029,2]
[315108339,1708829432682,-160.1,0.00025051,2]
[315108340,1708829432773,-174.17,0.00025059,2]
[315108341,1708829432783,-36.45665327,0.00025108,3]
[315108342,1708829432795,-114.56585773,0.00025108,3]
[315108343,1708829432804,-151.022511,0.00025108,3]
[315108344,1708829432813,-151.022511,0.00025108,3]
[315108345,1708829432822,-151.022511,0.00025108,3]
[315108346,1708829432831,-151.022511,0.00025108,3]
[315108347,1708829432841,-151.022511,0.00025108,3]
[315108348,1708829432849,-61.08144579,0.00025108,3]
[315108349,1708829432861,-89.94106521,0.00025108,3]
[315108350,1708829432870,-151.022511,0.00025108,3]
[315108351,1708829432880,-151.022511,0.00025108,3]
[315108352,1708829432889,-151.022511,0.00025108,3]
[315108353,1708829432898,-151.022511,0.00025108,3]
[315108354,1708829432907,-120.40858827,0.00025108,3]
[315108355,1708829432926,-30.61392273,0.00025108,3]
[315108356,1708829432935,-393.44,0.00025116,3]
[315108357,1708829432944,-175.47718664,0.00025121,2]
[315108358,1708829432953,-153.0514485,0.00025121,2]
[315108359,1708829432962,-1685.92596899,0.00025122,2]
[315108360,1708829432985,-813.6841211,0.00025122,2]
[315108361,1708829433017,-0.38990991,0.00025122,2]
[315108362,1708829433029,-630.94553949,0.00025125,2]
[315108363,1708829433056,-370.20537975,0.00025125,2]
[315108364,1708829433072,-1464.34284965,0.00025125,2]
[315108365,1708829433085,-6725.07333502,0.00025125,2]
[315108366,1708829433097,-19094.31679558,0.00025125,2]
[315108367,1708829433108,-1443.01562339,0.00025125,2]
[315108371,1708829440823,-500.0,0.00025124,2]
[315108372,1708829440832,-357.01648859,0.00025124,2]
[315108373,1708829440844,-142.98351141,0.00025124,2]
[315108374,1708829440853,-281.89696448,0.00025124,2]
[315108375,1708829440865,-192.42014792,0.00025124,2]
[315108376,1708829440874,-16961.6239424,0.00025125,4]
[315108377,1708829440911,156209.44982732,0.0002,2]
[315108378,1708829440924,-1370.56773181,0.00025125,4]
[315108379,1708829440935,-2025.26791969,0.00025125,4]
[315108380,1708829440947,-300.0,0.00025125,4]
[315108381,1708829440958,-27907.79888129,0.00025125,4]
[315108382,1708829440981,-6239.11207965,0.00025125,4]